[Event "4NCL Div 1 2024-25"]
[Site "England"]
[Date "2025.01.26"]
[Round "4.5"]
[White "Wadsworth, Matthew J"]
[Black "Li, Harry"]
[Result "1/2-1/2"]
[Annotator "TA"]
[ECO "E05"]
[WhiteElo "2461"]
[BlackElo "2203"]
[PlyCount "127"]
[EventDate "2024.11.23"]
[EventType "team-tourn"]
[EventCountry "ENG"]
[SourceTitle "playchess.com"]
[Source "ChessBase"]
[SourceQuality "1"]
[TimeControl "40/6000+30:3000+30"]

{[%evp 13,127,0,0,0,0,0,0,0,0,0,0,0,-8,-7,0,0,0,-8,-16,0,0,0,0,0,0,0,0,0,57,48,104,81,65,0,144,107,102,104,395,91,91,85,94,86,92,85,80,75,92,89,93,93,102,97,103,100,96,90,91,91,96,89,94,64,77,62,76,70,66,66,68,76,76,54,61,54,54,62,106,107,107,24,23,22,21,41,41,39,353,345,336,20,20,16,16,16,16,0,8,0,0,0,0,0,0,0,0,0,0,0,0,0,0,0,0,0]} 1. Nf3 {[%emt 0:10:03]} d5 {[%emt 0:10:05]} 2. g3 {[%emt 0:00:13]} Nf6 {[%emt 0:00:41]} 3. Bg2 {[%emt 0:00:33]} e6 {[%emt 0:00:10]} 4. O-O {[%emt 0:00:21]} Be7 {[%emt 0:00:15]} 5. c4 {[%emt 0:00:29]} O-O {[%emt 0:00:11]} 6. d4 {[%emt 0:00:31]} dxc4 {[%emt 0:00:07]} 7. Qc2 {[%emt 0:00:09]} b5 {[%emt 0:00:06]} 8. a4 {[%emt 0:01:26] E05: Open Catalan: 5 Nf3 Be7.} b4 {[%emt 0:00:05]} 9. Ne5 {[%emt 0:01:29]} Qxd4 $1 {[%emt 0:00:30]} 10. Bxa8 {[%emt 0:00:10] A sharp opening} Qxe5 {[%emt 0:00:04]} 11. Bf4 $1 {[%emt 0:00:10] 11.Bf4 scores better than 11.Bf3.} Qh5 {[%emt 0:02:08] [#]} 12. Bf3 {[%emt 0:01:01]} (12. Qxc4 Ng4 13. h4 (13. Bxc7 $2 Qxh2#) 13... e5 $17) 12... Ng4 $1 {[%emt 0:00:25]} 13. Bxg4 {[%emt 0:00:08] Successful Defense White} (13. Bxc7 $2 Qxh2#) 13... Qxg4 {[%emt 0:00:05]} 14. Qxc4 {[%emt 0:00:12]} e5 $1 {[%emt 0:10:53]} 15. Qxc7 {[%emt 0:00:16]} exf4 {[%emt 0:01:02]} (15... Nc6 $6 16. Be3 (16. Bxe5 Qe6 $19) 16... Qe6 17. Rc1 $14 (17. Bxa7 $2 Bd8 $19)) 16. Qxe7 {[%emt 0:00:08]} (16. Qxb8 $2 fxg3 (16... Qxe2 17. Qxf4 Bh3 18. Nd2 $17) 17. hxg3 Qxe2 $19) 16... fxg3 {[%emt 0:00:48]} 17. Nd2 $36 {[%emt 0:00:07][%mdl 2048] White is more active.} (17. Qxa7 $2 gxf2+ 18. Kxf2 Re8 $19) (17. fxg3 Nc6 18. Qd6 Nd4) 17... gxf2+ {[%emt 0:05:15]} 18. Kxf2 {[%emt 0:00:10][%cal Od2f3]} Qd4+ {[%emt 0:08:59]} 19. Qe3 {[%emt 0:00:13] The board is on fire.} Qxb2 {[%emt 0:04:06]} 20. Qf4 {[%emt 0:00:08][%cal Of1b1]} Be6 $146 {[%emt 0:12:16]} ({Black should try} 20... Na6 $11) (20... Nc6 21. Nc4 Qc2 22. Ne3 Qc5 23. Rac1 Qb6 24. Ke1 Be6 25. Nf5 Bxf5 26. Qxf5 Nd4 27. Qxf7+ {1-0 Stegert,J (1952)-Muzika,P (2070) Kiel op 36th 2024 (7)}) 21. Rab1 $14 {[%emt 0:09:03]} Qa2 {[%emt 0:04:41]} (21... Qc2 $1 $14) 22. Rxb4 {[%emt 0:06:06]} (22. Rg1 {feels hotter.} g6 23. Ne4 Nd7 24. Rxb4 f5 25. Nc3) 22... Nc6 {[%emt 0:00:35][%cal Bb8c6,Bc6b4,Bb4d5][%mdl 32]} 23. Rbb1 {[%emt 0:01:44]} (23. Rb7 $14) 23... a5 {[%emt 0:13:23]} (23... f6 $1 $11 {remains equal.}) 24. Rb6 {[%emt 0:07:29]} Nb4 {[%emt 0:11:06][%cal Ob4d5] ...Nd5! would now be deadly.} 25. Rb8 {[%emt 0:01:11]} Qxa4 $2 {[%emt 0:00:13][%mdl 8192]} (25... Qc2 $16 {is a better defense.}) 26. Rxf8+ $2 {[%emt 0:14:47]} (26. Ne4 $18 {[%cal Oe4f6] Threatening mate with Nf6+!.} h5 27. Nf6+ gxf6 28. Rg1+ Kh7 29. Qxf6 (29. Rxf8 $2 Nd3+ 30. Ke3 Qxf4+ $19) 29... Nd3+ (29... Rxb8 30. Qg7#) 30. Ke3 (30. exd3 Qc2+ 31. Ke3 Qc5+ 32. Kd2 Qxg1 $11) 30... Qf4+ 31. Qxf4 Nxf4 32. Rxf8 Nd5+ 33. Kd3) 26... Kxf8 $16 {[%emt 0:00:02][%cal Bg8f8,Bf8e8,Be8e7][%mdl 32]} 27. Qd6+ {[%emt 0:00:13] White attacks} Ke8 {[%emt 0:00:05]} 28. Qb8+ {[%emt 0:06:42]} Ke7 {[%emt 0:00:44]} 29. Rc1 {[%emt 0:03:31] Inhibits Qc2.} Nd5 {[%emt 0:01:21] Against Rc7+} 30. Qa7+ {[%emt 0:01:05]} Qd7 {[%emt 0:06:33]} 31. Qxa5 {[%emt 0:00:37]} (31. Qxd7+ Kxd7 32. Ra1 Ke7 33. Rxa5 h6 34. Ne4) 31... Qd6 {[%emt 0:00:57]} 32. Nf3 {[%emt 0:01:02]} Qf4 {[%emt 0:12:10]} 33. Qc5+ {[%emt 0:01:23]} Qd6 {[%emt 0:01:41]} 34. Qa7+ {[%emt 0:01:05]} Bd7 {[%emt 0:02:03]} 35. Rd1 {[%emt 0:06:35]} Qb6+ {[%emt 0:01:06]} 36. Qxb6 {[%emt 0:00:07]} Nxb6 {[%emt 0:00:01][%mdl 4096] Endgame KRN-KBN} 37. Rd4 {[%emt 0:01:26]} h6 {[%emt 0:01:44]} 38. h4 {[%emt 0:00:44]} Be6 {[%emt 0:00:27]} 39. Kg3 {[%emt 0:00:44]} Nd5 {[%emt 0:01:04]} 40. e4 {[%emt 0:00:55]} Nf6 {[%emt 0:00:56]} 41. Rb4 {[%emt 0:50:36]} Nh5+ {[%emt 0:26:11]} 42. Kf2 {[%emt 0:00:00]} Nf4 {[%emt 0:01:46]} 43. Ke3 {[%emt 0:00:00] Inhibits Nd3.} Ng2+ {[%emt 0:01:11]} 44. Kd4 {[%emt 0:00:00]} Bg4 {[%emt 0:03:33]} 45. Rb7+ {[%emt 0:00:00]} Ke6 {[%emt 0:01:04]} 46. Ne5 {[%emt 0:00:00]} Bh5 {[%emt 0:00:36]} 47. Nc6 {[%emt 0:00:00]} (47. Rb6+ $16 Ke7 48. Rb5) 47... Nxh4 $11 {[%emt 0:15:08]} 48. Nd8+ {[%emt 0:00:00]} Kf6 {[%emt 0:00:10]} 49. e5+ {[%emt 0:00:00][%cal Be4e5,Be5e6][%mdl 32]} Kf5 {[%emt 0:00:25]} 50. Nxf7 {[%emt 0:00:00]} Bxf7 $4 {[%emt 0:02:19][%mdl 8192]} (50... Ke6 $1 $14) 51. Rxf7+ $14 {[%emt 0:00:00] KR-KN} Ke6 {[%emt 0:00:02] [#]} 52. Rf8 {[%emt 0:00:00]} (52. Rxg7 $2 Nf5+ 53. Kd3 Nxg7 $19) (52. Rf1 $1 $18 {Ke4 is the strong threat.} Ng6 53. Rg1) 52... Ng6 $11 {[%emt 0:02:46][%csl LRe5,LRf8] The position is equal.} 53. Re8+ {[%emt 0:00:00]} Kf5 $1 {[%emt 0:01:40]} 54. e6 {[%emt 0:05:21]} h5 {[%emt 0:00:06][%cal Bh6h5,Bh5h4,Bh4h3][%mdl 32]} 55. Kd5 {[%emt 0:00:37]} h4 {[%emt 0:00:24]} 56. e7 {[%emt 0:00:48]} (56. Rh8 {simplifies} Nf4+ 57. Kc4 Nxe6 58. Rxh4 g5 59. Rh1) 56... Kg4 {[%emt 0:01:18]} 57. Ke6 {[%emt 0:04:28]} h3 {[%emt 0:00:32]} 58. Rh8 {[%emt 0:00:35]} Nxe7 {[%emt 0:00:18]} 59. Kxe7 {[%emt 0:00:02] KR-KPP} Kg3 {[%emt 0:00:10]} 60. Ke6 {[%emt 0:00:09]} h2 {[%emt 0:00:21]} 61. Kf5 {[%emt 0:00:04]} Kg2 {[%emt 0:00:05]} 62. Rxh2+ {[%emt 0:00:06]} Kxh2 {[%emt 0:00:01]} 63. Kg6 {[%emt 0:00:08]} Kg3 {[%emt 0:00:03]} 64. Kxg7 {[%emt 0:00:03] Weighted Error Value: White=0.21 (precise) /Black=0.24 (precise)   Loses game:     	---       	Black=2      Missed win:     	White=2     	---        Mistake:       	White=2     	Black=3      Inaccurate:     	White=1     	Black=1      OK:         	White=21    	Black=22     Best:        	White=5     	Black=8      Strong:       	---       	Black=4} 1/2-1/2

[Event "4NCL Div 1 2024-25"]
[Site "England"]
[Date "2025.01.26"]
[Round "4.6"]
[White "Sucikova, Svetlana"]
[Black "Jackson, James P"]
[Result "0-1"]
[Annotator "TA"]
[ECO "E65"]
[WhiteElo "2174"]
[BlackElo "2373"]
[PlyCount "82"]
[EventDate "2024.11.23"]
[EventType "team-tourn"]
[EventCountry "ENG"]
[SourceTitle "playchess.com"]
[Source "ChessBase"]
[SourceQuality "1"]
[TimeControl "40/6000+30:3000+30"]

{[%evp 19,82,-2,12,0,0,-10,37,28,19,15,18,13,52,13,11,12,78,70,77,0,0,0,0,0,0,0,16,18,17,7,14,0,14,0,88,58,66,-63,-25,-89,-96,-170,-13,-12,-6,-4,-2,-110,-110,-122,-117,-264,-258,-245,-235,-241,-189,-252,-199,-808,-777,-1017,-989,-1008,-955]} 1. Nf3 {[%emt 0:10:55]} Nf6 {[%emt 0:10:07]} 2. g3 {[%emt 0:01:30]} g6 {[%emt 0:00:21]} 3. Bg2 {[%emt 0:00:46]} Bg7 {[%emt 0:00:10]} 4. O-O {[%emt 0:00:45]} O-O {[%emt 0:00:06]} 5. c4 {[%emt 0:00:58]} d6 {[%emt 0:00:52]} 6. d4 {[%emt 0:00:57]} c5 {[%emt 0:00:38]} 7. Nc3 {[%emt 0:01:43]} Nc6 {[%emt 0:00:32]} 8. dxc5 {[%emt 0:03:52]} dxc5 {[%emt 0:00:07]} 9. Be3 {[%emt 0:00:21]} Be6 {[%emt 0:01:13]} 10. Bxc5 {[%emt 0:07:08]} Qa5 {[%emt 0:02:05]} 11. Be3 {[%emt 0:06:25] E65: King's Indian: Fianchetto: 6...c5 7 0-0 without d5 by White.} Bxc4 {[%emt 0:01:03]} 12. Nd4 {[%emt 0:04:08]} Ne5 {[%emt 0:20:59]} (12... Rfc8 $11) 13. Nb3 $146 {[%emt 0:05:18] White is slightly better.} (13. Bxb7 Rad8 {½-½ Skembris,S (2525)-Georgiev,K (2445) Ano Liosia op 1995 (9)}) 13... Qc7 {[%emt 0:03:33]} 14. Rc1 {[%emt 0:01:50]} Rad8 {[%emt 0:01:44] Repels Qd4} 15. Qc2 {[%emt 0:02:17]} b6 {[%emt 0:03:46] The position is symmetric and equal} 16. Bf4 {[%emt 0:02:35][%cal Ob3d4]} Qb8 {[%emt 0:02:13]} 17. Rfd1 {[%emt 0:06:25]} Rc8 {[%emt 0:01:45]} (17... Rxd1+ $11 18. Rxd1 Nh5) 18. Nd4 $1 $16 {[%emt 0:09:22][%cal Od4c6]} Nd5 {[%emt 0:19:40]} 19. Qa4 {[%emt 0:12:23]} (19. Bxd5 $6 Bxd5 20. Nf5 gxf5 $11) (19. Qd2 $1 $16 Nxf4 20. gxf4) 19... Nxf4 $11 {[%emt 0:14:56]} 20. gxf4 {[%emt 0:00:17]} Ng4 {[%emt 0:00:30]} 21. e3 {[%emt 0:03:35]} Bxd4 {[%emt 0:01:06]} 22. Rxd4 {[%emt 0:00:09]} b5 {[%emt 0:02:48]} 23. Qb4 {[%emt 0:02:52]} e5 {[%emt 0:00:29]} 24. fxe5 {[%emt 0:07:51]} Nxe5 {[%emt 0:00:08][%cal Bg4e5,Be5d3,Bd3b2][%mdl 32]} 25. Qe7 {[%emt 0:03:19]} Nd3 {[%emt 0:11:54]} 26. Rd1 {[%emt 0:03:28]} Rfe8 {[%emt 0:03:59]} (26... Nxb2 $11 27. Ra1 Rc7) 27. Qh4 {[%emt 0:02:00] Threatens to win with Ne4.} Nxb2 {[%emt 0:00:42]} 28. Rb1 {[%emt 0:02:48]} (28. Ra1 $14) 28... Bd3 $1 $15 {[%emt 0:00:45]} 29. Rxd3 {[%emt 0:04:06]} Nxd3 $17 {[%emt 0:00:07]} 30. Nd5 {[%emt 0:00:05] [#]} (30. Rxb5 $17 {is a better defense.} Qc7 31. Nd5) 30... Qe5 $2 {[%emt 0:01:08]} (30... Rc4 $1 $19 {[%cal Rc4h4]} 31. Nf6+ Kg7 32. Nxe8+ Qxe8) 31. Nf6+ $11 {[%emt 0:02:59]} Kg7 {[%emt 0:00:10]} 32. Nxe8+ {[%emt 0:01:51]} Rxe8 {[%emt 0:00:07]} (32... Qxe8 $2 33. Qd4+ Ne5 34. f4 $18 (34. Qxa7 Rc4 $11)) 33. Bc6 {[%emt 0:00:06] Prevents a6.} (33. Bf1 $11 {keeps the balance.} Qd5 34. Qd4+ (34. Rd1 Re4 $17) 34... Qxd4 35. exd4) 33... Rb8 $36 {[%emt 0:02:02][%mdl 2048] Black has strong initiative.} 34. Rd1 {[%emt 0:01:11]} Rb6 {[%emt 0:01:37] Black is more active.} 35. Qd4 {[%emt 0:01:10] Now White is beyond hope.} (35. Bg2 $17 Qc3 36. Qd8) 35... Qxd4 $19 {[%emt 0:01:21]} 36. exd4 {[%emt 0:00:02]} Rxc6 {[%emt 0:01:50]} 37. Rxd3 {[%emt 0:00:05] KR-KR. Black is a pawn up.} Kf6 {[%emt 0:00:28]} 38. Kg2 {[%emt 0:00:57]} (38. d5 $142 Rd6 39. Rf3+ Ke7 40. Re3+ Kd7 41. Rf3) 38... b4 {[%emt 0:01:06]} 39. a3 $2 {[%emt 0:00:57] [#]} (39. d5 Rd6 40. a3) 39... Rc3 $1 {[%emt 0:00:31] Black is clearly winning.} ({Less strong is} 39... a5 40. axb4 axb4 41. d5 $15) 40. Rd2 {[%emt 0:00:27]} Rxa3 {[%emt 0:00:21] Hoping for ...b3.} 41. d5 {[%emt 0:23:55]} Ke7 {[%emt 0:20:29] Weighted Error Value: White=0.60/Black=0.25 (precise)   Mistake:       	White=8     	Black=4      Inaccurate:     	White=3     	Black=1      OK:         	White=6     	Black=10     Best:        	White=3     	Black=3      Strong:       	White=1     	Black=2} 0-1

[Event "4NCL Div 1 2024-25"]
[Site "England"]
[Date "2025.01.26"]
[Round "4.7"]
[White "Haydon, David L"]
[Black "Nakara Husain"]
[Result "1-0"]
[Annotator "TA"]
[ECO "A06"]
[WhiteElo "2294"]
[BlackElo "1663"]
[PlyCount "93"]
[EventDate "2024.11.23"]
[EventType "team-tourn"]
[EventCountry "ENG"]
[SourceTitle "playchess.com"]
[Source "ChessBase"]
[SourceQuality "1"]
[TimeControl "40/6000+30:3000+30"]

{[%evp 9,93,22,28,18,25,6,12,8,18,0,25,26,20,12,26,26,29,23,56,49,60,56,37,29,63,0,15,8,7,0,46,39,32,35,47,28,97,88,185,185,329,286,262,130,131,142,174,0,205,247,350,354,344,353,367,321,521,525,571,567,653,689,691,687,649,660,1043,983,1143,1133,1001,844,812,789,887,854,1063,1012,4678,4594,2100,2610,1927,1847,1301,1250]} 1. Nf3 {[%emt 0:16:32]} d5 {[%emt 0:10:14]} 2. e3 {[%emt 0:00:43]} Nf6 {[%emt 0:01:36]} 3. b3 {[%emt 0:00:17]} g6 {[%emt 0:00:16]} 4. Bb2 {[%emt 0:00:07]} Bg7 {[%emt 0:00:06]} 5. c4 {[%emt 0:01:36]} e6 {[%emt 0:00:28]} 6. Be2 {[%emt 0:00:47] A06: Réti Opening: 1 Nf3 d5.} b6 {[%emt 0:01:32]} 7. Qc2 $146 {[%emt 0:02:31]} (7. cxd5 exd5 8. d4 O-O 9. Nc3 Re8 10. O-O c6 11. b4 Bb7 12. Qb3 Nbd7 13. Rfd1 {0-1 Chu,W (2281)-Xu,Y (2430) Danzhou Hainan op 1st 2016 (7)}) 7... Bb7 {[%emt 0:01:31]} 8. d4 {[%emt 0:01:31] The position is equal.} Nbd7 {[%emt 0:06:41]} 9. Nc3 {[%emt 0:02:22]} c6 {[%emt 1:22:36]} 10. O-O {[%emt 0:04:30]} O-O {[%emt 0:00:00]} 11. Rad1 {[%emt 0:02:45]} Rc8 {[%emt 0:01:00]} 12. Ne5 {[%emt 1:12:49]} Nxe5 {[%emt 0:00:00]} 13. dxe5 {[%emt 0:00:00]} Nd7 {[%emt 0:00:00]} 14. f4 {[%emt 0:00:00]} f6 {[%emt 0:00:00]} 15. exf6 {[%emt 0:00:00]} Bxf6 {[%emt 0:00:00]} 16. Ba3 {[%emt 0:00:00] Repels Qe7} Re8 {[%emt 0:00:00]} 17. Bg4 {[%emt 0:00:00] White is more active.} (17. Qd2 $14) 17... Bg7 {[%emt 0:00:00]} 18. Ne2 {[%emt 0:00:00][%cal Bc3e2,Be2d4,Bd4f3,Bf3e5][%mdl 32]} Nf6 {[%emt 0:00:00][%cal Bd7f6,Bf6e4,Be4d6,Bd6f5][%mdl 32]} 19. Bh3 {[%emt 0:00:00]} Rc7 {[%emt 0:00:00]} (19... c5 $11 {deserves consideration.}) 20. Nd4 $14 {[%emt 0:00:00]} Bc8 {[%emt 0:00:00]} 21. Nf3 $36 {[%emt 0:00:00][%mdl 2048] White has good play.} Ne4 {[%emt 0:00:00]} 22. Bb2 {[%emt 0:00:00]} g5 {[%emt 0:05:30]} (22... Bxb2 $11 {remains equal.} 23. Qxb2 Ba6) 23. g3 {[%emt 0:00:00]} h5 {[%emt 0:00:00]} (23... Bxb2 $16 24. Qxb2 Rg7) 24. Ne5 $18 {[%emt 0:06:00]} h4 {[%emt 0:00:00]} (24... Qf6 $142 25. Bg2 Bb7 26. cxd5 exd5 27. Bxe4 dxe4) 25. Bg2 {[%emt 0:00:30]} Nd6 {[%emt 0:00:00]} 26. Bf3 {[%emt 0:00:00]} (26. gxh4 $18 {is more deadly.} gxf4 27. Rxf4) 26... hxg3 $16 {[%emt 0:00:00]} 27. hxg3 {[%emt 0:00:00]} Nf5 {[%emt 0:00:00] [#]} 28. Qf2 $2 {[%emt 0:00:00]} ({White should try} 28. g4 $1 $18 {[%cal Rg4f5]} Nxe3 29. Qg6 Nxf1 30. Nxc6 (30. Kxf1 Rf8 $17)) 28... Qe7 $2 {[%emt 0:00:00]} (28... gxf4 $11 {and Black stays safe.} 29. gxf4 (29. exf4 Bf8 $11) 29... Bf6) 29. Bh5 $18 {[%emt 0:02:00]} Rf8 {[%emt 0:00:00] Prevents Bf7+.} (29... gxf4 {keeps fighting.} 30. Qxf4 (30. Bf7+ Qxf7 31. Nxf7 fxe3 $11) 30... Rf8) 30. Ng6 {[%csl LRe7,LRf8]} Qc5 {[%emt 0:04:00][%cal Og7b2]} 31. Bd4 {[%emt 0:00:00]} ({Not} 31. fxg5 Nxe3 32. Bf6 (32. Nxf8 Bxb2 $11) 32... Rff7 $11) 31... Qb4 {[%emt 0:00:00]} 32. Nxf8 {[%emt 0:00:00]} ({Don't take} 32. fxg5 Nxd4 33. Nxf8 Nf5 $18) 32... Bxf8 {[%emt 0:00:00]} (32... Qxf8 33. fxg5 Nxd4) 33. fxg5 {[%emt 0:00:00] g4 is the strong threat. White is clearly winning.} Qd6 {[%emt 0:00:00]} 34. g4 {[%emt 0:02:30]} Qg3+ {[%emt 0:00:39]} 35. Qxg3 {[%emt 0:00:00]} Nxg3 {[%emt 0:00:05] [#]} 36. Rxf8+ {[%emt 0:01:00]} Kxf8 {[%emt 0:00:27]} 37. Be5 {[%emt 0:00:00][%csl LRc7,LRg3]} Nxh5 {[%emt 0:00:38]} 38. Bxc7 {[%emt 0:00:00][%mdl 4096] Endgame KRB-KBN} Ng7 {[%emt 0:00:24]} 39. Rf1+ {[%emt 0:00:00]} Kg8 {[%emt 0:00:15]} 40. g6 {[%emt 0:00:00]} e5 {[%emt 0:00:39]} 41. Bd6 {[%emt 0:45:18]} Ne6 {[%emt 0:50:15] Against Rf8+} 42. Rf7 {[%emt 0:07:42]} dxc4 {[%emt 0:00:42]} 43. bxc4 {[%emt 0:00:00]} Ba6 {[%emt 0:00:18]} 44. Rxa7 {[%emt 0:00:00]} Bxc4 {[%emt 0:00:08]} 45. Bxe5 {[%emt 0:00:00] White threatens Ra8+ and mate.} Kf8 {[%emt 0:00:36]} 46. g7+ {[%emt 0:00:00]} Nxg7 {[%emt 0:02:54]} 47. Bxg7+ {[%emt 0:00:00] Weighted Error Value: White=0.20 (precise) /Black=0.74  Loses game:     	---       	Black=1      Missed win:     	White=1     	---        Mistake:       	White=2     	Black=6      Inaccurate:     	---       	Black=2      OK:         	White=13    	Black=9      Best:        	White=3     	---} 1-0

[Event "4NCL Div 1 2024-25"]
[Site "England"]
[Date "2025.01.26"]
[Round "4.8"]
[White "Carroll, Thomas"]
[Black "Hunt, Harriet V"]
[Result "1/2-1/2"]
[Annotator "TA"]
[ECO "E12"]
[WhiteElo "2126"]
[BlackElo "2298"]
[PlyCount "97"]
[EventDate "2024.11.23"]
[EventType "team-tourn"]
[EventCountry "ENG"]
[SourceTitle "playchess.com"]
[Source "ChessBase"]
[SourceQuality "1"]
[TimeControl "40/6000+30:3000+30"]

{[%evp 16,97,-4,0,0,0,3,0,0,0,0,0,0,-12,0,-12,0,-19,-16,-33,0,-17,-19,-38,0,-13,-10,-41,-39,-46,-12,-42,-12,-30,-31,-58,-68,-61,-62,-75,-10,-14,-12,-66,-69,-76,-74,-135,-137,-124,-129,-131,-129,-135,-122,-135,-113,-168,-35,-36,-29,-18,0,0,0,0,0,0,0,0,0,0,37,0,0,0,8,8,8,0,8,0,8,0]} 1. d4 {[%emt 0:10:04]} Nf6 {[%emt 0:10:13]} 2. Nf3 {[%emt 0:00:06]} e6 {[%emt 0:00:18]} 3. Bg5 {[%emt 0:00:05]} c5 {[%emt 0:00:34]} 4. e3 {[%emt 0:00:05]} cxd4 {[%emt 0:00:19]} 5. exd4 {[%emt 0:00:07]} b6 {[%emt 0:00:16]} 6. Bd3 {[%emt 0:01:39]} Bb7 {[%emt 0:01:35]} 7. O-O {[%emt 0:00:53]} Be7 {[%emt 0:00:51]} 8. c4 {[%emt 0:03:36]} O-O {[%emt 0:03:36]} 9. Nc3 {[%emt 0:00:30]} h6 {[%emt 0:03:01] E12: Queen's Indian: Unusual White 4th moves, 4 a3, 4 Nc3 Bb7 5 a3 and 4 Nc3 Bb7 .} 10. Bxf6 {[%emt 0:06:59]} Bxf6 {[%emt 0:00:06]} 11. Be4 {[%emt 0:00:10]} d5 $146 {[%emt 0:04:49]} (11... Bxe4 12. Nxe4 Nc6 13. d5 Ne5 14. Nxf6+ Qxf6 15. Nxe5 Qxe5 16. Qd2 Rac8 17. Rfe1 {0-1 Xing,Z (1727)-Asaka,S (2201) Sydney NSW op 2023 (1)}) 12. cxd5 {[%emt 0:00:13]} exd5 {[%emt 0:00:06]} 13. Bc2 {[%emt 0:00:45]} Nc6 {[%emt 0:01:45] Wards off Ne5} 14. Qd3 {[%emt 0:05:11]} g6 {[%emt 0:00:38]} 15. a3 {[%emt 0:01:05] The position is symmetric and equal} Rc8 {[%emt 0:03:59]} 16. Rfe1 {[%emt 0:01:39]} Bg7 {[%emt 0:06:27]} 17. Rad1 {[%emt 0:10:10]} Qd6 {[%emt 0:06:55]} 18. Qe3 {[%emt 0:16:14]} a6 {[%emt 0:11:16]} 19. Bb1 {[%emt 0:00:34]} Rc7 {[%emt 0:04:32]} 20. Qd3 {[%emt 0:03:15]} Na5 {[%emt 0:04:12]} 21. Re2 {[%emt 0:09:00]} Nc4 {[%emt 0:01:54]} 22. Rde1 {[%emt 0:00:38]} Qc6 {[%emt 0:06:49]} 23. Nd1 {[%emt 0:01:57]} Bc8 {[%emt 0:11:34]} 24. Ne3 {[%emt 0:00:29] Against Bf5} b5 {[%emt 0:01:40]} 25. h4 {[%emt 0:04:43][%cal Oh4h5]} h5 {[%emt 0:01:21]} 26. Ne5 {[%emt 0:05:05]} Qd6 {[%emt 0:03:45]} 27. f4 {[%emt 0:02:14]} Nxe3 {[%emt 0:02:26]} (27... Bh6 $17 28. g3 Rd8) 28. Qxe3 $11 {[%emt 0:00:24]} Qf6 {[%emt 0:01:30]} 29. Qf3 {[%emt 0:02:40]} (29. g3 $11) 29... Qxh4 $15 {[%emt 0:03:30] Black attacks} 30. g3 {[%emt 0:03:31]} Qf6 {[%emt 0:02:39]} 31. f5 {[%emt 0:02:41]} ({Only move:} 31. Qxd5 Rd8 32. Qb3) 31... Bxf5 $17 {[%emt 0:05:51]} ({Don't take} 31... gxf5 32. Qxh5 Qh6 33. Rh2 Qxh5 34. Rxh5 $11) 32. Bxf5 {[%emt 0:09:38]} Qxf5 {[%emt 0:00:16]} 33. Qxf5 {[%emt 0:00:34]} gxf5 {[%emt 0:00:05]} 34. Rf2 {[%emt 0:00:22]} Re8 {[%emt 0:04:03]} 35. Rxf5 {[%emt 0:00:12]} Rc2 {[%emt 0:01:07]} 36. Ref1 {[%emt 0:02:02]} (36. b4 $17 {was called for.}) 36... Re7 {[%emt 0:00:57]} (36... Bxe5 $19 37. dxe5 Rxb2 38. Rg5+ Kf8 39. Rxh5 Re7) 37. R1f2 $15 {[%emt 0:01:20]} Rc1+ {[%emt 0:01:38]} 38. Kg2 {[%emt 0:00:17]} Rd1 {[%emt 0:00:35]} 39. Rxh5 {[%emt 0:03:41]} Rc7 {[%emt 0:00:57]} (39... Rxd4 40. Nc6 Rd7 41. Nxd4 Bxd4 42. Rd2) 40. Rhf5 {[%emt 0:03:24]} Rxd4 {[%emt 0:00:57]} 41. Nxf7 {[%emt 0:52:00]} Rd3 {[%emt 0:25:33][%cal Og7b2]} 42. Ng5 {[%emt 0:00:00]} Re7 {[%emt 0:05:26]} 43. Rc2 {[%emt 0:00:00] [#] Black must now prevent Rc8+.} Bh6 {[%emt 0:10:56]} 44. Rc6 {[%emt 0:00:00]} Bxg5 {[%emt 0:03:00] The position is equal.} 45. Rxg5+ {[%emt 0:00:00]} Kf7 {[%emt 0:00:13]} 46. Rf5+ {[%emt 0:00:00]} Kg7 {[%emt 0:00:54]} 47. Rg5+ {[%emt 0:00:00]} Kf7 {[%emt 0:00:06]} 48. Rf5+ {[%emt 0:00:00]} Kg7 {[%emt 0:00:05]} 49. Rg5+ {[%emt 0:00:00] Weighted Error Value: White=0.13 (very precise) /Black=0.15 (very precise)   Mistake:       	White=3     	Black=2      Inaccurate:     	White=3     	Black=5      OK:         	White=12    	Black=15     Best:        	White=2     	Black=4} 1/2-1/2